bitfinex/quotes_ETHUSD_20250328
["timestamp","ask_amount","ask_price","bid_price","bid_amount"]
[1743123852473,0.2080054,2005.0,2004.7,6.1175186]
[1743123852673,0.2080054,2005.0,2004.7,11.1055986]
[1743123852898,0.2080054,2005.0,2004.8,4.988]
[1743123853400,0.2080054,2005.0,2004.7,6.1176686]
[1743123853801,0.2080054,2005.0,2004.7,4.98824]
[1743123854304,0.2080054,2005.0,2004.8,4.98802]
[1743123854459,0.2080054,2005.0,2004.7,4.98821]
[1743123856299,0.2080054,2005.0,2004.8,4.98799]
[1743123856804,0.2080054,2005.0,2004.8,9.97581]
[1743123857002,0.2080054,2005.0,2004.8,4.98782]
[1743123857300,8.76717,2005.2,2004.8,4.98782]
[1743123857505,0.20822957,2005.1,2004.8,9.97566]
[1743123857709,8.76717,2005.2,2004.8,4.98782]
[1743123858166,0.20822957,2005.1,2004.7,4.98823]
[1743123858367,4.98735,2005.1,2004.7,4.98823]
[1743123858569,0.20822957,2005.0,2004.8,4.98799]
[1743123859967,0.20822957,2005.0,2004.9,4.98777]
[1743123861114,0.20822957,2005.0,2004.8,4.98799]
[1743123861406,0.7703,2004.9,2004.6,4.98831]
[1743123861706,9.19515886,2004.9,2004.5,4.98867]
[1743123862007,0.20822957,2004.8,2004.5,0.58049523]
[1743123862372,9.19515886,2004.9,2004.5,0.58049523]
[1743123862719,4.98818,2004.8,2004.3,5.75566]
[1743123862883,0.20822957,2004.7,2004.3,10.74478]
[1743123864386,0.20822957,2004.7,2004.4,4.989]
[1743123864620,0.20822957,2004.7,2004.4,5.3626484]
[1743123865120,0.20822957,2004.7,2004.4,4.989]
[1743123866426,5.19655957,2004.7,2004.3,5.75564]
[1743123866579,5.19655957,2004.7,2004.3,7.2756088]
[1743123866985,5.81434,2004.6,2004.2,10.99648913]
[1743123867284,0.20755725,2004.5,2004.2,6.00697913]
[1743123867510,0.20755725,2004.5,2004.2,4.98936]
[1743123871029,0.20755725,2004.5,2004.1,4.98975]
[1743123871328,5.19640725,2004.5,2004.1,4.98975]
[1743123871499,0.20755725,2004.5,2004.1,6.41004789]
[1743123871921,0.20755725,2004.5,2004.2,4.98947]
[1743123876072,3.64447611,2004.5,2004.1,4.98959]
[1743123876225,8.32547611,2004.5,2004.2,4.98951]
[1743123876424,4.88855725,2004.5,2004.2,4.98951]
[1743123876723,4.88855725,2004.5,2004.3,4.98926]
[1743123877658,0.20755725,2004.5,2004.3,4.98926]
[1743123877862,0.20755725,2004.5,2004.3,11.749602]
[1743123878246,0.20755725,2004.5,2004.3,5.76248]
[1743123879647,0.20755725,2004.5,2004.4,4.98902]
[1743123880457,3.7732,2004.8,2004.5,4.98864]
[1743123881245,3.7732,2004.8,2004.4,4.98902]
[1743123881449,8.76138,2004.8,2004.4,4.98902]
[1743123882842,3.7732,2004.8,2004.4,4.98882]
[1743123883358,8.76136,2004.8,2004.4,4.98882]
[1743123883560,13.7496,2004.8,2004.4,4.98882]
[1743123883763,3.0,2004.6,2004.3,4.98927]
[1743123884981,3.0,2004.6,2004.3,9.97835]
[1743123885164,3.0,2004.7,2004.4,4.98893]
[1743123885350,3.0,2004.7,2004.5,4.98871]
[1743123887776,0.7732,2004.8,2004.6,4.98852]
[1743123887984,5.76815,2005.1,2004.7,4.98813]
[1743123888185,3.0,2005.0,2004.7,4.98813]
[1743123888387,7.98763,2005.0,2004.6,4.98851]
[1743123888552,7.98763,2005.0,2004.6,9.9769]
[1743123888883,3.0,2005.0,2004.7,4.98827]
[1743123889187,4.98861,2004.6,2004.2,4.98937]
[1743123889384,13.92980886,2004.7,2004.2,9.97865]
[1743123889573,13.92980886,2004.7,2004.2,4.98928]
[1743123889888,13.92980886,2004.7,2004.3,9.97836]
[1743123890183,13.92980886,2004.7,2004.3,4.98914]
[1743123891060,0.20624986,2004.6,2004.3,4.98914]
[1743123891588,0.20624986,2004.5,2004.3,4.98914]
[1743123891776,0.20624986,2004.5,2004.3,6.57873243]
[1743123892094,13.92980886,2004.7,2004.3,6.57873243]
[1743123892253,0.20624986,2004.4,2004.3,4.98914]
[1743123892787,13.92980886,2004.7,2004.3,4.98914]
[1743123893085,0.20624986,2004.6,2004.3,4.98914]
[1743123893449,13.92980886,2004.7,2004.3,4.98914]
[1743123893652,0.20624986,2004.5,2004.3,4.98914]
[1743123893989,13.92980886,2004.7,2004.3,4.98914]
[1743123893990,0.20624986,2004.4,2004.3,4.98914]
[1743123894172,13.92980886,2004.7,2004.3,4.98914]
[1743123894401,0.20624986,2004.6,2004.3,4.98914]
[1743123894901,13.92980886,2004.7,2004.3,4.98914]
[1743123895101,0.20624986,2004.5,2004.3,4.98914]
[1743123895302,13.92980886,2004.7,2004.3,4.98914]
[1743123895503,0.20624986,2004.4,2004.2,19.48951]
[1743123895704,4.98853,2004.6,2004.2,24.47885]
[1743123895904,0.20624986,2004.3,2004.2,24.47885]
[1743123896106,4.98853,2004.6,2004.2,27.35234689]
[1743123896306,0.20624986,2004.3,2004.2,22.36283689]
[1743123896609,0.20624986,2004.3,2004.2,7.86283689]
[1743123896807,4.98853,2004.6,2004.2,9.97867]
[1743123896984,4.98853,2004.6,2004.3,4.98925]
[1743123897610,4.98853,2004.6,2004.2,4.98933]
[1743123898916,7.13320928,2004.6,2004.2,4.98933]
[1743123900437,2.14467928,2004.5,2004.2,4.98933]
[1743123900731,7.13320928,2004.6,2004.2,4.98933]
[1743123901238,2.14467928,2004.5,2004.2,4.98933]
[1743123901724,7.13320928,2004.6,2004.2,4.98933]
[1743123902199,2.14467928,2004.6,2004.3,4.98926]
[1743123903635,10.13319928,2004.6,2004.2,7.23465093]
[1743123903837,10.13319928,2004.6,2004.2,4.98933]
[1743123905730,7.13319928,2004.6,2004.2,4.98933]
[1743123905914,0.20550261,2004.5,2004.2,4.98933]
[1743123908442,0.20550261,2004.5,2004.3,4.98926]
[1743123908942,0.20550261,2004.5,2004.2,4.98946]
[1743123909104,0.20550261,2004.5,2004.2,7.23479393]
[1743123909503,0.20550261,2004.5,2004.2,7.23470393]
[1743123909710,4.98903,2004.4,2004.1,4.98975]
[1743123910025,0.20550852,2004.3,2004.1,4.98975]
[1743123910410,2.14467928,2004.4,2004.1,4.98975]
[1743123910615,0.20550852,2004.2,2004.1,4.98975]
[1743123910810,2.14467928,2004.4,2004.1,4.98975]
[1743123911012,0.20550852,2004.2,2004.1,4.98975]
[1743123911211,2.14467928,2004.4,2004.1,4.98975]
[1743123911447,0.20550852,2004.2,2004.1,4.98975]
[1743123911620,7.96051928,2004.5,2004.1,4.98975]
[1743123911820,0.20550852,2004.2,2004.1,4.98975]
[1743123912031,7.96051928,2004.5,2004.1,4.98975]
[1743123912231,0.20550852,2004.2,2004.1,4.98975]
[1743123912431,7.96051928,2004.5,2004.1,4.98975]
[1743123912745,2.14467928,2004.4,2004.1,4.98975]
[1743123913110,0.20550852,2004.3,2004.1,4.98975]
[1743123913507,2.14467928,2004.4,2004.1,4.98975]
[1743123913741,0.20550852,2004.2,2004.1,4.98975]
[1743123913962,2.97167928,2004.3,2004.1,4.98975]
[1743123914116,0.20550852,2004.2,2004.1,4.98975]
[1743123916756,2.89767928,2004.5,2004.2,4.9895]
[1743123917162,7.682,2004.6,2004.3,4.98915]
[1743123917526,9.82667928,2004.6,2004.4,14.5]
[1743123917927,9.82667928,2004.6,2004.3,4.98915]
[1743123919560,2.14467928,2004.5,2004.2,19.48937]
[1743123919862,2.14467928,2004.5,2004.3,4.98926]
[1743123920271,9.82667928,2004.6,2004.3,4.98926]
[1743123920856,0.2052096,2004.5,2004.3,4.98926]
[1743123922584,0.2052096,2004.5,2004.2,4.98937]
[1743123922757,0.7642,2004.2,2003.9,4.99003]
[1743123923891,0.2052096,2004.1,2003.9,4.99003]
[1743123925016,0.2052096,2004.1,2004.0,5.78891]
[1743123925181,3.8321,2004.5,2004.1,4.98961]
[1743123925182,8.82106,2004.5,2004.1,4.98961]
[1743123925371,0.2052096,2004.4,2004.1,4.98961]
[1743123925973,0.2052096,2004.4,2004.0,7.21651922]
[1743123926174,5.1943196,2004.4,2004.0,7.21651922]
[1743123926379,7.98931,2004.3,2003.9,9.98035]
[1743123926772,0.2052096,2004.2,2003.9,9.98035]
[1743123927106,0.2052096,2004.2,2003.9,4.9901]
[1743123927307,0.2052096,2004.2,2003.9,9.98017]
[1743123927521,0.2052096,2004.2,2003.9,7.86614221]
[1743123927816,0.2052096,2004.2,2003.9,12.85624221]
[1743123928319,0.2052096,2004.2,2003.9,7.86614221]
[1743123928487,0.2052096,2004.2,2003.9,12.85624221]
[1743123928807,0.2052096,2004.2,2003.9,12.85625221]
[1743123928977,0.2052096,2004.2,2004.0,4.99001]
[1743123929907,0.2052096,2004.2,2003.9,24.48018]
[1743123930097,0.2052096,2004.2,2003.9,27.011498]
[1743123930267,0.2052096,2004.2,2004.0,4.99]
[1743123931487,0.36238831,2004.2,2004.0,4.99]
[1743123934007,0.36238831,2004.2,2004.0,19.49]
[1743123934412,0.36238831,2004.2,2004.0,4.99]
[1743123937120,8.12965212,2004.1,2003.6,5.7869]
[1743123937411,8.12965212,2004.1,2003.6,4.99096]
[1743123937412,5.35123793,2004.0,2003.6,4.99096]
[1743123937788,5.35123793,2004.0,2003.7,4.99076]
[1743123938685,0.36111793,2004.0,2003.7,4.99076]
[1743123941285,0.36111793,2004.0,2003.7,4.99059]
[1743123941491,0.36111793,2004.0,2003.7,5.988749]
[1743123942915,0.36111793,2004.0,2003.7,4.99059]
[1743123947815,5.35116793,2004.0,2003.6,5.81464]
[1743123948144,7.4969233,2004.0,2003.6,4.99094]
[1743123948942,7.4969233,2004.0,2003.6,9.98176]
[1743123949746,3.36111793,2004.0,2003.7,4.99063]
[1743123950445,7.91813537,2003.9,2003.5,4.99126]
[1743123950812,0.32920885,2003.8,2003.5,4.99126]
[1743123951043,0.32920885,2003.8,2003.5,9.98233]
[1743123951344,0.32920885,2003.8,2003.6,4.99099]
[1743123951646,0.32920885,2003.8,2003.6,4.99084]
[1743123951805,0.32920885,2003.8,2003.6,5.82999441]
[1743123952212,0.32920885,2003.8,2003.6,10.82080441]
[1743123952451,0.32920885,2003.8,2003.6,10.77089954]
[1743123952932,0.32920885,2003.8,2003.6,10.77095954]
[1743123954454,0.32920885,2003.8,2003.6,5.78005954]
[1743123955559,0.32920885,2003.8,2003.6,4.99081]
[1743123956254,0.32920885,2003.8,2003.6,5.04071487]
[1743123956460,0.32920885,2003.8,2003.7,4.99076]
[1743123956839,3.0,2004.0,2003.7,4.99076]
[1743123957136,0.32883501,2003.9,2003.7,4.99076]
[1743123958365,4.993,2002.8,2002.7,1.97917855]
[1743123958535,4.993,2002.8,2002.5,0.63591315]
[1743123958536,2.14575537,2002.8,2002.6,4.99339]
[1743123958735,0.7727,2002.9,2002.5,5.16045867]
[1743123959067,0.7727,2002.9,2002.6,4.9935]
[1743123959238,0.32816208,2002.8,2002.6,4.9935]
[1743123959463,12.75753,2003.0,2002.6,4.9935]
[1743123959660,0.32816208,2002.7,2002.6,4.9935]
[1743123959867,12.75753,2003.0,2002.5,5.16050387]
[1743123959868,4.99286,2002.9,2002.5,5.16050387]
[1743123960062,0.32816208,2002.7,2002.6,4.9935]
[1743123960363,12.75753,2003.0,2002.5,5.1104241]
[1743123960681,14.90328537,2003.0,2002.5,10.1040541]
[1743123960986,0.32816208,2002.9,2002.6,4.99349]
[1743123961200,0.32816208,2002.9,2002.6,5.04341978]
[1743123961896,0.32816208,2002.9,2002.6,4.99349]
[1743123962086,0.32816208,2002.9,2002.6,9.98685]
[1743123962491,0.32816208,2002.9,2002.7,4.99309]
[1743123963693,0.32816208,2002.9,2002.6,4.99349]
[1743123963897,0.32816208,2002.9,2002.6,5.04341978]
[1743123964194,0.32816208,2002.9,2002.6,10.03672978]
[1743123964395,0.32816208,2002.9,2002.6,9.9868]
[1743123964795,0.32816208,2002.9,2002.7,4.99321]
[1743123966601,0.32816208,2002.9,2002.6,4.99331]
[1743123966799,0.32816208,2002.9,2002.6,5.04323977]
[1743123967097,0.32816208,2002.9,2002.6,10.03655977]
[1743123967401,0.32816208,2002.9,2002.6,3.99331]
[1743123971884,3.78043712,2002.9,2002.6,3.99331]
[1743123973108,3.78043712,2002.9,2002.6,4.04323979]
[1743123976628,3.78043712,2002.9,2002.6,0.04992979]
[1743123976788,0.32816208,2002.9,2002.7,5.78803]
[1743123977305,0.32816208,2002.9,2002.7,4.99303]
[1743123977628,4.99335,2002.7,2002.5,0.1168641]
[1743123977916,3.77665937,2002.6,2002.5,0.1168641]
[1743123979229,12.52935937,2002.6,2002.5,0.1168641]
[1743123981324,17.27535937,2002.6,2002.5,0.1168641]
[1743123990920,13.82308433,2002.6,2002.5,0.1168641]
[1743123997355,14.18999657,2002.6,2002.5,0.1168641]
[1743123998930,14.73999657,2002.6,2002.5,0.1168641]
[1743124003659,14.18999657,2002.6,2002.5,0.1168641]
[1743124003963,14.16099657,2002.6,2002.5,0.1168641]
[1743124004862,16.31082169,2002.6,2002.5,0.1168641]
[1743124007964,16.86082169,2002.6,2002.5,0.1168641]
[1743124011175,4.99544,2001.9,2001.6,0.821]
[1743124011380,2.14982512,2001.7,2001.6,0.821]
[1743124011768,2.14982512,2001.8,2001.6,0.821]
[1743124011967,2.46635094,2001.7,2001.6,0.821]
[1743124012879,0.31652582,2001.7,2001.6,0.821]
[1743124013253,5.31227582,2001.7,2001.6,0.821]
[1743124013448,4.9962,2001.6,2001.4,0.821]
[1743124014083,0.3147655,2001.5,2001.4,0.821]
[1743124014578,0.3147655,2001.5,2001.4,5.81739]
[1743124014777,3.0,2001.7,2001.4,5.81739]
[1743124014968,3.0,2001.7,2001.5,4.99617]
[1743124015172,3.0,2001.7,2001.4,5.81739]
[1743124016277,3.0,2001.7,2001.4,10.81378]
[1743124016483,7.714,2001.7,2001.6,0.8127]
[1743124017280,7.714,2001.7,2001.6,0.3127]
[1743124017483,7.714,2001.7,2001.4,4.99643]
[1743124017783,7.714,2001.7,2001.3,4.99656]
[1743124017784,12.70985,2001.7,2001.3,4.99656]
[1743124017976,12.70985,2001.7,2001.3,24.49314]
[1743124018296,7.714,2001.7,2001.4,4.99646]
[1743124020002,9.28427963,2001.6,2001.2,4.9969]
[1743124020167,9.28427963,2001.6,2001.2,5.8218]
[1743124020667,8.45267963,2001.6,2001.2,5.8218]
[1743124020869,3.45662963,2001.6,2001.2,0.8249]
[1743124021094,7.714,2001.7,2001.3,4.99653]
[1743124021298,4.717,2001.6,2001.3,4.99653]
[1743124022814,4.717,2001.6,2001.3,4.74653]
[1743124023023,8.17362963,2001.6,2001.3,4.74653]
[1743124023183,0.8324,2001.5,2001.2,9.99388]
[1743124023387,13.16968963,2001.6,2001.2,4.99689]
[1743124023607,8.17362963,2001.6,2001.2,4.99679]
[1743124023987,8.16700977,2001.6,2001.3,0.7842]
[1743124024295,4.71038014,2001.6,2001.4,4.99639]
[1743124024720,4.71038014,2001.6,2001.3,5.7808]
[1743124025418,4.71038014,2001.6,2001.3,5.78077]
[1743124025886,0.31169391,2001.5,2001.3,5.78077]
[1743124026086,0.31169391,2001.5,2001.3,10.77734]
[1743124027819,0.31169391,2001.5,2001.4,4.9965]
[1743124029026,0.31169391,2001.5,2001.3,5.78088]
[1743124030831,0.31169391,2001.5,2001.3,10.77747]
[1743124032928,0.31169391,2001.5,2001.4,4.9965]
[1743124033226,7.708,2001.7,2001.5,4.99625]
[1743124033436,0.31169391,2001.6,2001.5,4.99625]
[1743124033601,7.708,2001.7,2001.5,4.99625]
[1743124033802,0.31169391,2001.6,2001.5,4.99625]
[1743124034002,7.708,2001.7,2001.5,4.99625]
[1743124034200,4.714,2001.9,2001.7,4.99574]
[1743124034431,3.0,2001.8,2001.6,5.788]
[1743124039019,3.0,2001.8,2001.6,0.792]
[1743124040829,0.28547478,2001.7,2001.6,0.792]
[1743124041342,0.28547478,2001.7,2001.5,4.99606]
[1743124043748,0.28547478,2001.7,2001.5,9.99215]
[1743124044860,0.28547478,2001.7,2001.6,4.996]
[1743124045459,0.28547478,2001.7,2001.5,4.99618]
[1743124048255,0.28547478,2001.7,2001.4,20.30368]
[1743124048465,0.28547478,2001.7,2001.5,4.99622]
[1743124051557,0.28547478,2001.7,2001.6,4.996]
[1743124051930,4.696,2001.9,2001.7,4.99571]
[1743124052137,3.7956,2002.1,2001.8,4.99533]
[1743124052461,4.697,2002.1,2001.9,4.9952]
[1743124052828,3.0,2002.0,2001.8,4.99542]
[1743124053055,3.0,2002.0,2001.8,4.9953]
[1743124053671,7.697,2002.1,2001.8,4.9953]
[1743124053874,3.0,2002.0,2001.8,4.9953]
[1743124054284,3.0,2002.0,2001.7,5.77934]
[1743124055578,3.0,2002.0,2001.7,5.77918]
[1743124055736,0.2858508,2001.9,2001.8,4.99548]
[1743124060104,0.2858508,2001.9,2001.7,6.8467719]
[1743124060277,0.2858508,2001.9,2001.7,5.77931]
[1743124061625,0.2858508,2001.9,2001.7,10.77489]
[1743124062621,0.2858508,2001.9,2001.7,5.77918]
[1743124065616,0.2858508,2001.9,2001.7,4.99558]
[1743124066011,0.2858508,2001.9,2001.6,4.99586]
[1743124066681,0.2858508,2001.9,2001.6,9.99168]
[1743124066881,0.2858508,2001.9,2001.7,4.99572]
[1743124067710,0.2858508,2001.9,2001.6,4.99582]
[1743124070994,0.2858508,2001.9,2001.6,19.49582]
[1743124072119,0.2858508,2001.9,2001.6,24.49166]
[1743124072508,4.99636,2001.5,2000.7,5.79245]
[1743124072690,4.99636,2001.5,2000.8,4.9979]
[1743124072691,4.99686,2001.3,2000.8,4.9979]
[1743124072883,4.99686,2001.3,2000.9,4.99774]
[1743124073111,3.23061263,2001.4,2001.0,19.49748]
[1743124073112,7.94067273,2001.4,2001.0,19.49748]
[1743124073312,0.2864899,2001.2,2001.0,19.49748]
[1743124073507,7.94067273,2001.4,2001.0,19.49748]
[1743124073713,7.94067273,2001.4,2001.0,19.96592918]
[1743124073922,0.2864899,2001.3,2001.0,19.96592918]
[1743124074220,7.94067273,2001.4,2001.0,19.96592918]
[1743124074428,0.2864899,2001.2,2001.1,4.99725]
[1743124074591,0.7937,2001.4,2001.1,4.99725]
[1743124074790,0.2864899,2001.2,2001.1,4.99725]
[1743124075119,0.7937,2001.4,2001.1,4.99725]
[1743124075308,0.2864899,2001.2,2001.1,9.99434]
[1743124075490,0.7937,2001.4,2001.1,12.73917627]
[1743124075817,5.79026,2001.4,2001.0,25.29846]
[1743124076017,0.2864899,2001.3,2001.0,25.29846]
[1743124076319,2.15042273,2001.2,2000.9,4.9977]
[1743124076522,2.43691263,2001.2,2000.9,4.9977]
[1743124076816,2.43691263,2001.2,2000.9,4.99765]
[1743124077218,0.7991,2001.1,2000.9,4.99765]
[1743124077417,7.94627273,2001.3,2000.9,4.99759]
[1743124077611,0.2864899,2001.0,2000.9,4.99765]
[1743124077920,7.94627273,2001.3,2000.9,4.99765]
[1743124078086,0.2864899,2001.0,2000.9,4.99765]
[1743124078287,7.94627273,2001.3,2000.9,4.99765]
[1743124078489,0.2864899,2001.0,2000.9,4.94765]
[1743124078690,2.15042273,2001.2,2000.9,4.94765]
[1743124078923,0.2864899,2001.0,2000.9,4.94765]
[1743124079119,2.15042273,2001.2,2000.9,4.94765]
[1743124079592,0.2864899,2001.1,2000.9,4.94765]
[1743124079795,10.14743273,2001.2,2000.8,4.99792]
[1743124079999,0.2864899,2001.0,2000.7,4.99806]
[1743124080322,2.94952273,2001.1,2000.8,4.99798]
[1743124080540,0.2864899,2000.9,2000.8,4.99798]
[1743124080700,2.94952273,2001.1,2000.8,4.99798]
[1743124080900,1.0682899,2000.9,2000.7,4.99806]
[1743124081124,2.93222273,2001.1,2000.8,4.998]
[1743124082034,2.93222273,2001.1,2000.8,9.99586]
[1743124082335,9.7165,2001.0,2000.6,4.99826]
[1743124082498,4.719,2001.0,2000.7,4.99823]
[1743124082900,9.71651,2001.0,2000.7,4.99823]
[1743124083122,11.86693273,2001.0,2000.7,4.99823]
[1743124083434,4.719,2001.0,2000.6,4.9983]
[1743124083735,4.719,2001.0,2000.7,4.99823]
[1743124084511,9.71656,2001.0,2000.6,4.9983]
[1743124085112,4.719,2001.0,2000.7,4.99822]
[1743124085312,9.71659,2001.0,2000.7,4.99823]
[1743124085818,0.28427116,2000.9,2000.6,4.99839]
[1743124086225,0.28427116,2000.9,2000.7,4.99822]
[1743124087216,0.28427116,2000.9,2000.6,4.99843]
[1743124087412,0.8064,2000.8,2000.5,5.1155041]
[1743124087619,1.08785041,2000.8,2000.5,5.1154741]
[1743124088141,1.08785041,2000.8,2000.5,5.1153941]
[1743124088340,1.08785041,2000.8,2000.6,4.99828]
[1743124088642,0.28145041,2000.8,2000.7,4.99825]
[1743124088862,4.719,2001.0,2000.7,4.99825]
[1743124089068,0.28145041,2000.8,2000.7,4.99825]
[1743124089275,4.719,2001.0,2000.7,4.99825]
[1743124089418,0.28145041,2000.8,2000.7,4.99825]
[1743124089749,3.0,2001.0,2000.8,4.99795]
[1743124090552,3.7632,2001.0,2000.6,4.99848]
[1743124090775,10.91122273,2001.0,2000.6,4.99833]
[1743124091124,10.91122273,2001.0,2000.6,9.99668]
[1743124091949,5.91362273,2001.0,2000.7,4.9982]
[1743124092481,10.91115273,2001.0,2000.7,4.9982]
[1743124092777,7.14818273,2000.9,2000.5,5.1155941]
[1743124092928,4.99776,2000.9,2000.5,5.1155941]
[1743124093331,4.99776,2000.9,2000.5,10.1141541]
[1743124093631,4.99776,2000.9,2000.6,4.99849]
[1743124093830,8.76073,2001.0,2000.6,4.99849]
[1743124094344,3.7632,2001.0,2000.7,4.9981]
[1743124094552,3.0,2001.0,2000.7,5.7619]
[1743124094755,3.0,2001.0,2000.8,4.99793]
[1743124094943,4.71,2001.1,2000.9,4.99762]
[1743124095140,8.5257,2001.2,2000.9,4.99762]
[1743124095462,0.8157,2001.2,2000.9,5.04758518]
[1743124095622,4.71,2001.3,2001.1,4.99711]
[1743124095827,0.8157,2001.4,2001.1,4.99711]
[1743124096023,0.8157,2001.4,2001.1,4.9971]
[1743124096230,3.8157,2001.4,2001.1,4.9971]
[1743124099458,3.0,2001.4,2001.2,4.99696]
[1743124100865,0.28227809,2001.3,2001.2,4.99696]
[1743124101155,3.0,2001.4,2001.2,4.99696]
[1743124101350,0.28224048,2001.3,2001.2,4.99696]
[1743124101759,3.0,2001.4,2001.2,4.99696]
[1743124101967,0.28224048,2001.3,2001.2,4.99696]
[1743124102340,3.0,2001.4,2001.2,4.99696]
[1743124102545,0.28227809,2001.3,2001.2,4.99696]
[1743124102858,3.0,2001.4,2001.2,4.99696]
[1743124103053,0.28227809,2001.3,2001.2,4.99696]
[1743124103363,0.7899,2001.6,2001.4,4.9964]
[1743124103534,4.703,2001.7,2001.5,4.99625]
[1743124104061,4.703,2001.7,2001.4,4.9964]
[1743124104062,4.99575,2001.7,2001.4,4.99649]
[1743124104242,3.0,2001.7,2001.4,4.99649]
[1743124104444,3.0,2001.7,2001.5,4.99609]
[1743124105057,3.0,2001.7,2001.4,4.99649]
[1743124106368,3.0,2001.7,2001.4,9.99281]
[1743124107362,8.498,2001.8,2001.5,4.99625]
[1743124107565,3.0,2001.7,2001.5,4.99625]
[1743124111687,3.0,2001.7,2001.4,4.99632]
[1743124112043,3.0,2001.7,2001.4,9.99266]
[1743124112781,3.0,2001.7,2001.5,4.99621]
[1743124113483,3.0,2001.7,2001.4,4.99646]
[1743124113647,3.0,2001.7,2001.4,9.99278]
[1743124114190,3.0,2001.7,2001.4,4.99632]
[1743124114384,3.0,2001.7,2001.3,4.99675]
[1743124114587,5.75004,2001.6,2001.2,4.9969]
[1743124115247,0.7916,2001.5,2001.2,4.9969]
[1743124115947,0.26102571,2001.4,2001.2,4.9969]
[1743124116768,0.26102571,2001.4,2001.3,4.99675]
[1743124117087,0.26102571,2001.4,2001.3,6.825415]
[1743124117300,12.69252,2001.8,2001.4,4.99626]
[1743124117488,0.7885,2001.6,2001.3,4.99671]
[1743124117690,5.7848,2001.5,2001.1,4.99712]
[1743124118004,0.26087482,2001.4,2001.2,4.99698]
[1743124118770,0.26087482,2001.4,2001.2,9.99365]
[1743124118985,0.26087482,2001.4,2001.2,4.99681]
[1743124119170,0.26087482,2001.4,2001.2,9.99362]
[1743124120893,0.26087482,2001.4,2001.3,4.99675]
[1743124121299,0.8069,2001.7,2001.4,4.99646]
[1743124121499,0.26087482,2001.6,2001.4,4.99646]
[1743124121700,0.8069,2001.7,2001.4,4.99646]
[1743124121877,0.26087482,2001.6,2001.3,4.99675]
[1743124122077,5.80265,2001.7,2001.3,4.99675]
[1743124122317,0.26087482,2001.6,2001.3,4.99675]
[1743124122507,5.80265,2001.7,2001.3,4.99675]
[1743124122795,0.26030898,2001.6,2001.3,4.99675]
[1743124123018,5.80265,2001.7,2001.3,4.99675]
[1743124123314,0.26030898,2001.6,2001.3,4.99675]
[1743124123516,5.80265,2001.7,2001.3,4.99675]
[1743124123724,0.26030898,2001.6,2001.3,4.99675]
[1743124124024,5.80265,2001.7,2001.3,4.99675]
[1743124124316,0.26030898,2001.6,2001.3,4.99675]
[1743124124518,5.80265,2001.7,2001.3,4.99675]
[1743124124720,0.26030898,2001.6,2001.3,4.99675]
[1743124124920,2.15105058,2001.6,2001.3,4.99675]
[1743124125122,0.26030898,2001.5,2001.3,4.99675]
[1743124126020,0.26030898,2001.5,2001.3,9.99333]
[1743124126583,0.26030898,2001.4,2001.3,4.99658]
[1743124126782,7.95370058,2001.7,2001.3,6.21103406]
[1743124127083,0.26030898,2001.6,2001.3,4.99658]
[1743124127278,7.95370058,2001.7,2001.3,4.99658]
[1743124127483,0.26030898,2001.6,2001.3,4.99658]
[1743124127819,0.26030898,2001.5,2001.3,9.99314]
[1743124128022,7.95370058,2001.7,2001.3,9.99314]
[1743124128207,0.26030898,2001.6,2001.3,9.99314]
[1743124128382,7.95370058,2001.7,2001.3,9.99314]
[1743124128585,0.26030898,2001.6,2001.3,9.99314]
[1743124128811,7.95370058,2001.7,2001.3,9.99314]
[1743124129211,0.26030898,2001.6,2001.3,9.99314]
[1743124129422,7.95370058,2001.7,2001.3,9.99314]
[1743124129724,0.26030898,2001.6,2001.3,9.99314]
[1743124129924,7.95370058,2001.7,2001.3,9.9932]
[1743124130124,0.26030898,2001.6,2001.3,9.9932]
[1743124130297,7.95370058,2001.7,2001.3,9.9932]
[1743124130596,0.26030898,2001.6,2001.3,9.9932]
[1743124130824,7.95370058,2001.7,2001.3,9.9932]
[1743124130998,0.26030898,2001.6,2001.3,4.99656]
[1743124131200,7.95370058,2001.7,2001.3,4.99656]
[1743124131401,0.26030898,2001.6,2001.3,4.99656]
[1743124131616,7.95370058,2001.7,2001.3,4.99656]
[1743124131822,0.26030898,2001.6,2001.3,4.99656]
[1743124132003,2.15105058,2001.6,2001.3,4.99656]
[1743124132203,0.26030898,2001.5,2001.3,4.99656]
[1743124135687,7.95370058,2001.7,2001.3,4.99656]
[1743124136319,0.26030898,2001.6,2001.3,4.99656]
[1743124136487,7.95370058,2001.7,2001.3,4.99656]
[1743124136687,0.26030898,2001.5,2001.3,4.99656]
[1743124136889,7.95370058,2001.7,2001.3,4.99656]
[1743124137089,0.26030898,2001.4,2001.3,4.99656]
[1743124137316,7.95370058,2001.7,2001.3,4.99656]
[1743124137817,0.26012032,2001.6,2001.3,4.99656]
[1743124138019,7.95370058,2001.7,2001.3,4.99656]
[1743124138320,0.26012032,2001.6,2001.3,4.99656]
[1743124138522,2.15105058,2001.6,2001.3,4.99656]
[1743124138695,0.26012032,2001.5,2001.3,4.99656]
[1743124140526,0.26012032,2001.5,2001.3,9.99314]
[1743124140723,1.77273437,2001.9,2001.4,4.9965]
[1743124140917,4.69,2001.7,2001.5,4.99612]
[1743124141117,4.69,2001.7,2001.5,5.75272]
[1743124143231,4.69,2001.7,2001.4,4.99632]
[1743124144925,6.84105058,2001.7,2001.4,4.99632]
[1743124145229,11.83684058,2001.7,2001.3,10.80499]
[1743124145423,11.83684058,2001.7,2001.3,5.80828]
[1743124145631,11.83684058,2001.7,2001.4,4.99649]
[1743124145926,0.26068621,2001.6,2001.4,4.99649]
[1743124146126,11.83684058,2001.7,2001.4,4.99649]
[1743124146649,1.09368621,2001.6,2001.1,0.8118]
[1743124146809,7.14770058,2001.4,2001.0,4.99738]
[1743124146998,7.14770058,2001.4,2001.0,9.99469]
[1743124147200,0.26019575,2001.3,2001.0,9.99469]
[1743124147509,0.26019575,2001.3,2001.0,4.99731]